bitfinex/quotes_ETHUSD_20250823
["timestamp","ask_amount","ask_price","bid_price","bid_amount"]
[1755907719360,4.95423804,4817.9,4817.8,0.02]
[1755907720040,7.13923804,4817.9,4817.8,0.02]
[1755907721053,7.69330986,4817.9,4817.8,0.02]
[1755907721347,9.06589532,4817.9,4816.8,0.02]
[1755907721532,0.764,4816.9,4816.8,0.02]
[1755907721733,9.2779,4816.9,4816.8,0.02]
[1755907722053,10.17023804,4816.9,4816.8,0.02]
[1755907722363,7.17417804,4816.9,4816.8,0.02]
[1755907722660,7.89159584,4816.9,4816.8,0.02]
[1755907722969,11.51059584,4816.9,4816.8,0.02]
[1755907723194,11.51059584,4816.9,4815.8,0.02]
[1755907723329,11.51059584,4816.9,4811.8,0.02]
[1755907723330,2.185,4815.2,4811.8,0.02]
[1755907723685,0.5,4815.3,4811.8,0.02]
[1755907723686,3.0,4813.8,4811.8,0.02]
[1755907723864,0.104,4812.9,4812.0,0.1836]
[1755907724167,5.35,4812.9,4812.8,0.3138]
[1755907724544,5.5336,4812.9,4812.8,0.3138]
[1755907724744,5.35,4812.9,4812.8,0.4974]
[1755907725263,0.104,4812.9,4812.8,0.4974]
[1755907725464,5.353,4812.9,4812.8,0.4974]
[1755907726279,1.7,4812.9,4812.8,0.4974]
[1755907726479,5.249,4812.9,4812.8,0.4974]
[1755907726640,5.249,4812.9,4812.8,0.4984]
[1755907729545,5.249,4812.9,4812.8,0.3899]
[1755907730467,5.249,4812.9,4812.8,0.4939]
[1755907731163,1.596,4812.9,4812.8,0.4939]
[1755907731363,3.7716875,4812.9,4812.8,0.4939]
[1755907731565,1.597,4813.7,4812.9,0.66]
[1755907731764,3.646,4813.6,4813.1,0.66]
[1755907731965,1.597,4814.1,4813.6,0.1522]
[1755907732168,3.646,4814.0,4813.6,0.1522]
[1755907732367,3.646,4814.0,4813.8,0.104]
[1755907732548,3.646,4814.0,4813.9,0.2473]
[1755907732949,3.646,4814.0,4813.9,0.3513]
[1755907736686,0.02,4814.8,4814.1,3.0]
[1755907736867,0.02,4814.8,4814.7,0.8122]
[1755907737046,0.02,4815.8,4814.8,0.66]
[1755907737246,0.02,4815.8,4815.7,0.777]
[1755907737664,0.02,4815.8,4815.7,0.8501]
[1755907737865,0.02,4815.8,4815.7,1.473747]
[1755907738580,0.02,4815.8,4815.7,1.6211217]
[1755907738950,0.02,4815.8,4815.7,1.5480217]
[1755907739958,0.02,4815.8,4815.7,0.740647]
[1755907741064,0.02,4815.8,4815.7,1.473747]
[1755907742249,0.02,4815.8,4815.7,1.400647]
[1755907742654,0.02,4815.8,4815.7,34.473747]
[1755907744655,0.02,4815.8,4815.7,14.916747]
[1755907744983,0.02,4815.8,4815.7,16.4084217]
[1755907745757,0.02,4815.8,4815.7,35.9654217]
[1755907746667,0.02,4815.8,4815.7,36.0694217]
[1755907749863,0.022,4816.8,4815.8,3.66]
[1755907750173,0.022,4816.8,4816.7,0.777]
[1755907750498,0.022,4816.8,4816.7,37.514]
[1755907750662,0.4462,4818.8,4816.8,33.66]
[1755907750860,0.4462,4818.8,4817.7,0.777]
[1755907751078,0.4462,4818.8,4817.7,0.881]
[1755907753305,0.4462,4818.8,4817.7,1.3272]
[1755907753598,0.4462,4818.8,4817.7,1.2536]
[1755907753797,0.4462,4818.8,4817.7,2.04216]
[1755907754715,0.7643,4817.8,4817.7,1.99876]
[1755907755376,0.7643,4817.8,4817.7,1.2102]
[1755907756114,0.7643,4817.8,4817.7,0.764]
[1755907756408,0.02,4817.8,4817.7,0.764]
[1755907756608,0.02,4817.8,4817.7,4.38]
[1755907756809,0.02,4817.8,4817.7,33.764]
[1755907757009,0.02,4817.8,4817.7,35.905878]
[1755907759942,0.02,4817.8,4817.7,39.531878]
[1755907760110,0.4477,4820.1,4817.8,3.66]
[1755907760309,0.4677,4819.8,4818.1,0.764]
[1755907760637,0.4677,4819.8,4818.1,37.73976211]
[1755907760839,0.4677,4819.8,4818.1,38.84809606]
[1755907761052,0.02,4819.8,4818.2,3.66]
[1755907761251,0.02,4819.8,4818.4,3.66]
[1755907761551,0.02,4819.8,4819.7,0.764]
[1755907761738,0.02,4819.8,4819.7,16.578]
[1755907761915,0.02,4819.8,4819.7,19.8633]
[1755907762626,0.02,4819.8,4819.7,17.1223]
[1755907763021,0.02,4819.8,4819.7,19.3443]
[1755907763350,0.02,4819.8,4819.7,9.6763]
[1755907763914,0.02,4819.8,4819.7,30.3553]
[1755907764128,0.02,4819.8,4819.7,30.3533]
[1755907764459,0.02,4819.8,4819.7,29.5363]
[1755907765030,0.02,4819.8,4819.7,11.1733]
[1755907765233,0.02,4819.8,4819.7,10.3383]
[1755907766021,0.02,4819.8,4819.7,21.0673]
[1755907766220,0.02,4819.8,4819.7,21.0953]
[1755907766421,0.02,4819.8,4819.7,10.7073]
[1755907767065,0.02,4819.8,4819.7,22.7393]
[1755907767267,0.02,4819.8,4819.7,10.1153]
[1755907767471,0.02,4819.8,4819.7,6.2003]
[1755907767765,0.02,4819.8,4819.7,4.383]
[1755907768443,0.02,4819.8,4819.7,37.73676211]
[1755907768631,0.02,4819.8,4819.7,37.383]
[1755907769880,0.02,4819.8,4819.7,25.564]
[1755907770044,0.7619,4819.8,4819.7,23.685]
[1755907770239,0.7619,4819.8,4819.7,25.826878]
[1755907770466,0.02,4819.8,4819.7,25.826878]
[1755907770859,0.02,4819.8,4819.7,26.486878]
[1755907771674,0.02,4819.8,4819.7,22.867878]
[1755907771878,0.02,4819.8,4819.7,26.486878]
[1755907772442,0.02,4819.8,4819.7,9.524878]
[1755907772643,0.02,4819.8,4819.7,7.383]
[1755907772843,0.02,4819.8,4819.7,37.383]
[1755907775057,0.02,4819.8,4819.7,37.73676211]
[1755907775557,0.02,4819.8,4819.7,37.73576211]
[1755907777678,0.022,4820.8,4819.8,3.66]
[1755907777858,0.022,4820.8,4820.0,3.66]
[1755907778057,0.022,4820.8,4820.7,0.764]
[1755907778276,0.022,4820.8,4820.7,8.975]
[1755907778680,0.022,4820.8,4820.7,9.4247]
[1755907779059,0.022,4820.8,4820.7,39.4247]
[1755907779250,0.022,4820.8,4820.7,40.53303395]
[1755907779594,0.7639,4820.8,4820.7,4.0667]
[1755907780052,0.7639,4820.8,4820.7,3.617]
[1755907781753,0.7639,4820.8,4819.8,10.0]
[1755907781754,0.77531,4820.8,4819.8,10.0]
[1755907781957,0.32761,4820.8,4819.9,3.617]
[1755907782175,0.89158922,4820.7,4820.0,12.78557499]
[1755907782380,0.89158922,4820.6,4820.1,3.617]
[1755907782580,0.2942,4820.2,4820.1,3.617]
[1755907782776,1.18578922,4820.2,4820.1,3.617]
[1755907783090,1.18578922,4820.2,4819.5,1.594]
[1755907783290,0.4477,4820.1,4819.0,3.617]
[1755907783492,0.2942,4819.1,4818.9,3.617]
[1755907783665,0.4477,4819.0,4818.9,3.617]
[1755907783984,0.4477,4819.0,4818.8,3.617]
[1755907783985,0.7419,4819.0,4818.8,3.617]
[1755907784492,0.4477,4818.9,4818.8,3.617]
[1755907784713,0.7419,4818.9,4818.2,1.45489]
[1755907784864,0.4477,4818.8,4818.3,6.948]
[1755907785199,0.2942,4818.4,4818.3,3.617]
[1755907785385,0.2942,4818.4,4818.3,30.0]
[1755907785585,0.2942,4818.4,4818.3,18.272]
[1755907785586,0.7419,4818.4,4818.3,18.272]
[1755907786470,0.7419,4818.4,4818.3,7.992]
[1755907787466,7.7419,4818.4,4818.3,4.376]
[1755907787770,8.51609,4818.4,4816.6,0.15859487]
[1755907787973,7.4477,4818.3,4816.8,0.66]
[1755907788194,7.4477,4818.3,4816.9,40.0]
[1755907788419,0.4543,4818.2,4817.0,3.617]
[1755907788570,0.4543,4818.2,4817.1,10.0]
[1755907788886,0.4543,4818.2,4816.6,1.594]
[1755907788887,1.278127,4818.2,4816.6,1.594]
[1755907789086,0.4543,4818.1,4816.7,31.077]
[1755907789397,0.4543,4818.1,4817.8,0.104]
[1755907789609,0.315,4817.9,4817.8,0.104]
[1755907790316,0.7693,4817.9,4817.8,0.104]
[1755907794996,1.61077078,4817.9,4817.8,0.104]
[1755907795913,1.61077078,4817.9,4815.5,1.595]
[1755907796124,0.5,4817.3,4814.8,1.595]
[1755907796329,2.0493,4817.2,4816.6,0.104]
[1755907796534,0.315,4816.7,4816.6,0.104]
[1755907797026,0.7693,4816.7,4816.6,0.104]
[1755907797962,0.7693,4816.7,4814.1,1.595]
[1755907797963,0.5,4816.3,4814.1,1.595]
[1755907798107,0.5,4816.3,4815.0,0.0012]
[1755907798108,0.4543,4816.2,4815.0,0.0012]
[1755907798315,0.4543,4816.2,4814.1,1.595]
[1755907798525,0.70923,4816.2,4814.3,0.0016]
[1755907798757,0.70923,4816.2,4816.0,0.104]
[1755907798914,0.315,4816.1,4816.0,0.104]
[1755907799119,0.7693,4816.1,4816.0,0.104]
[1755907804365,0.5,4815.0,4812.8,0.747279]
[1755907804545,3.618,4814.9,4812.8,0.1235]
[1755907804914,0.4543,4814.8,4814.7,0.104]
[1755907805215,3.618,4814.9,4814.7,0.104]
[1755907805651,3.618,4814.9,4812.8,1.00428194]
[1755907805652,3.618,4814.9,4814.8,0.2696]
[1755907806167,3.618,4814.9,4814.8,0.104]
[1755907806655,0.5,4815.3,4814.8,0.124]
[1755907806820,0.4543,4815.2,4814.8,0.124]
[1755907807014,0.315,4814.9,4814.8,0.02]
[1755907807463,0.89623,4814.9,4814.8,0.124]
[1755907808256,0.7693,4814.9,4814.8,0.124]
[1755907809119,3.617,4815.4,4814.8,0.124]
[1755907809520,3.617,4815.4,4815.1,0.104]
[1755907809734,4.0713,4815.4,4815.1,0.104]
[1755907810118,0.315,4815.2,4815.1,0.104]
[1755907810518,0.7693,4815.2,4815.1,0.104]
[1755907811883,1.595,4815.7,4813.6,0.02077447]
[1755907812168,7.0,4815.6,4815.1,0.104]
[1755907812325,7.0,4815.6,4813.8,10.0]
[1755907812530,7.0,4815.6,4815.5,0.104]
[1755907816730,7.7693,4815.6,4815.5,0.104]
[1755907816927,9.3653,4815.6,4814.9,0.104]
[1755907817245,5.20993,4815.5,4814.9,0.104]
[1755907817450,0.315,4815.0,4814.9,0.104]
[1755907817657,3.932,4815.0,4814.9,0.104]
[1755907818162,4.3863,4815.0,4814.9,0.104]
[1755907818671,0.4483,4815.5,4814.9,0.104]
[1755907819155,0.4483,4815.5,4815.4,0.104]
[1755907819356,0.759,4815.5,4815.4,0.104]
[1755907819561,1.8986,4815.5,4815.4,0.104]
[1755907819863,2.0026,4815.5,4814.8,0.02]
[1755907820161,1.8986,4815.5,4815.0,0.104]
[1755907820360,1.4503,4815.5,4815.0,0.104]
[1755907820538,0.4483,4815.4,4815.0,0.104]
[1755907820855,0.3107,4815.1,4815.0,0.104]
[1755907821064,3.9277,4815.1,4815.0,0.104]
[1755907821259,4.376,4815.1,4815.0,0.104]
[1755907822556,4.376,4815.1,4813.8,0.124]
[1755907822557,4.076,4814.0,4813.8,0.124]
[1755907822746,7.0,4813.9,4813.8,0.02]
[1755907823228,7.6854,4813.9,4813.8,0.124]
[1755907825146,11.3024,4813.9,4813.8,0.124]
[1755907826669,10.5434,4813.9,4813.8,0.124]
[1755907828063,6.9264,4813.9,4813.8,0.124]
[1755907828431,6.9264,4813.9,4813.8,30.124]
[1755907828656,6.9264,4813.9,4813.8,32.265878]
[1755907830338,10.8541,4813.9,4813.8,0.124]
[1755907830543,11.3024,4813.9,4813.8,0.124]
[1755907831133,3.307169,4812.5,4811.9,10.0]
[1755907831364,10.233569,4812.4,4812.0,0.00847574]
[1755907831666,10.233569,4812.4,4812.0,3.647]
[1755907831836,10.233569,4812.4,4812.3,0.104]
[1755907834270,10.992569,4812.4,4812.3,0.104]
[1755907835277,10.992569,4812.4,4811.8,0.02]
[1755907835444,4.0653,4812.3,4811.9,0.00847592]
[1755907835766,0.3107,4812.0,4811.9,0.00847592]
[1755907835967,3.9277,4812.0,4811.9,0.00847592]
[1755907836174,9.8037259,4812.0,4811.9,0.00847592]
[1755907836357,9.3037259,4812.0,4811.9,0.00847592]
[1755907836556,7.683169,4812.0,4811.9,0.00847592]
[1755907836766,7.683169,4812.0,4811.9,0.00291444]
[1755907836942,7.683169,4812.0,4811.8,0.02]
[1755907836943,7.68025456,4812.0,4811.8,0.02]
[1755907837144,0.9483,4811.9,4811.8,0.02]
[1755907837360,1.259,4811.9,4811.8,0.02]
[1755907837956,0.759,4811.9,4811.8,0.02]
[1755907838353,3.617,4811.9,4811.8,0.0247]
[1755907838742,3.617,4811.9,4811.8,30.0247]
[1755907838948,3.307169,4812.0,4811.8,32.169478]
[1755907839148,3.307169,4812.0,4811.9,30.0029]
[1755907839349,3.307169,4812.0,4811.9,30.0076]
[1755907839948,3.307169,4812.0,4811.9,20.8216]
[1755907840155,3.307169,4812.0,4811.9,19.0676]
[1755907840355,3.307169,4812.0,4811.9,20.01443395]
[1755907840741,3.307169,4812.0,4811.9,30.95443395]
[1755907840948,3.307169,4812.0,4811.9,27.02343395]
[1755907841249,10.233569,4812.0,4811.9,27.02343395]
[1755907841689,10.233569,4812.0,4811.9,31.57551195]
[1755907842944,10.233569,4812.0,4811.9,32.23841195]
[1755907843390,10.233569,4812.0,4811.9,3.77851195]
[1755907843561,10.233569,4812.0,4811.9,2.831678]
[1755907843944,10.233569,4812.0,4811.9,30.631578]
[1755907844385,10.233569,4812.0,4811.9,31.291578]
[1755907845181,10.233569,4812.0,4811.9,31.395578]
[1755907845671,10.233569,4812.0,4811.9,35.012578]
[1755907845871,10.233569,4812.0,4811.9,7.154456]
[1755907846175,10.233569,4812.0,4811.9,35.012578]
[1755907849173,9.98402955,4812.0,4811.9,35.012578]
[1755907850556,9.98402955,4812.0,4811.9,27.733578]
[1755907850757,9.98402955,4812.0,4811.9,34.344845]
[1755907852572,9.98402955,4812.0,4811.9,35.004845]
[1755907852768,9.98402955,4812.0,4811.9,37.146723]
[1755907853290,3.20466147,4813.5,4812.0,0.66]
[1755907853596,3.20466147,4813.5,4812.2,0.66]
[1755907853791,3.20466147,4813.5,4813.4,0.104]
[1755907854091,3.20466147,4813.5,4813.4,33.72]
[1755907854392,3.96916147,4813.5,4813.4,33.72]
[1755907854595,3.96916147,4813.5,4813.4,34.343786]
[1755907855060,3.96916147,4813.5,4813.4,35.29061995]
[1755907856196,3.20466147,4813.5,4813.4,35.29061995]
[1755907858462,0.02,4813.8,4813.4,35.29061995]
[1755907858663,0.02,4813.8,4813.5,30.0]
[1755907859063,0.4809,4813.8,4813.5,30.0]
[1755907859260,0.4609,4813.7,4813.6,2.141878]
[1755907859464,0.02,4813.8,4813.7,10.0]
[1755907859703,0.02,4813.8,4813.7,30.104]
[1755907860003,0.7845,4813.8,4813.7,30.104]
[1755907860302,0.7845,4813.8,4813.7,0.1939]
[1755907860478,4.3995,4813.8,4813.7,0.104]
[1755907864830,4.83965,4813.8,4813.7,0.104]
[1755907865384,4.3995,4813.8,4813.7,0.104]
[1755907866708,4.3995,4813.8,4813.4,0.104]
[1755907866985,0.4609,4813.7,4813.4,0.104]
[1755907867185,0.3036,4813.5,4813.4,0.104]
[1755907867384,3.9176,4813.5,4813.4,0.104]
[1755907867621,4.3785,4813.5,4813.4,0.104]
[1755907868093,4.97815,4813.5,4813.4,0.104]
[1755907868415,4.97815,4813.5,4811.9,1.596]
[1755907868622,4.51725,4813.5,4812.8,0.104]
[1755907868918,0.4609,4813.4,4812.8,0.104]
[1755907869218,0.3036,4812.9,4812.8,0.104]
[1755907869418,3.9176,4812.9,4812.8,0.104]
[1755907869718,4.3785,4812.9,4812.8,0.104]
[1755907869924,4.86635,4812.9,4811.8,0.021]
[1755907870133,0.4609,4812.8,4812.6,0.104]
[1755907870428,0.3036,4812.7,4812.6,0.104]
[1755907870727,3.613,4812.7,4812.6,0.104]
[1755907870883,4.3775,4812.7,4812.6,0.104]
[1755907871599,3.9166,4812.7,4812.6,0.104]
[1755907871998,4.3775,4812.7,4812.6,0.104]
[1755907873391,0.5,4813.3,4812.6,0.098]
[1755907873621,0.022,4814.8,4812.6,0.098]
[1755907873622,3.20466147,4813.2,4812.7,24.37877835]
[1755907873824,3.20466147,4813.2,4812.8,2.141878]
[1755907874124,3.20466147,4813.2,4813.1,0.416]
[1755907874324,3.20466147,4813.2,4813.1,29.672]
[1755907874626,3.20466147,4813.2,4813.1,30.416]
[1755907875993,3.20466147,4813.2,4813.1,30.104]
[1755907877021,3.20466147,4813.2,4813.1,0.104]
[1755907877622,3.20466147,4813.2,4813.1,30.104]
[1755907878305,7.11266147,4813.2,4813.1,0.104]
[1755907878500,7.90262762,4813.2,4813.1,0.104]
[1755907878701,7.90262762,4813.2,4811.3,1.596]
[1755907878702,7.90262762,4813.2,4812.9,0.104]
[1755907879029,0.5,4813.0,4812.7,0.104]
[1755907879233,0.295,4812.8,4812.7,0.104]
[1755907879532,2.06103349,4812.8,4812.7,0.104]
[1755907879697,2.53053349,4812.8,4812.7,0.104]
[1755907879898,3.4973996,4812.8,4812.7,0.104]
[1755907880094,3.51817811,4812.8,4812.7,0.104]
[1755907880327,3.4973996,4812.8,4812.3,0.104]
[1755907880536,0.4695,4812.7,4812.3,0.104]
[1755907880739,0.295,4812.4,4812.3,0.104]
[1755907881102,0.7645,4812.4,4812.3,0.104]
[1755907882530,0.5,4811.9,4811.0,0.624089]
[1755907882731,6.81666147,4811.8,4811.1,30.0]
[1755907883032,6.81666147,4811.8,4810.9,30.0]
[1755907883602,6.81666147,4811.8,4811.7,0.104]
[1755907883916,7.11166147,4811.8,4811.7,0.104]
[1755907885203,7.58116147,4811.8,4811.7,0.104]
[1755907887620,6.81666147,4811.8,4811.7,0.104]
[1755907887817,6.81666147,4811.8,4811.7,0.4053]
[1755907888341,6.81666147,4811.8,4811.7,0.104]
[1755907888654,6.84706147,4811.8,4811.7,30.1628]
[1755907888959,6.84706147,4811.8,4811.7,32.304678]
[1755907889312,6.84706147,4811.8,4811.7,32.928715]
[1755907895356,6.86706147,4811.8,4811.7,32.928715]
[1755907899926,6.86706147,4811.8,4811.7,32.304678]
[1755907900329,3.22466147,4811.8,4811.7,28.766278]
[1755907900552,3.22466147,4811.8,4811.7,30.104]
[1755907901827,3.98916147,4811.8,4811.7,33.713]
[1755907902666,3.69416147,4811.8,4811.7,33.713]
[1755907902843,3.22466147,4811.8,4811.7,33.713]
[1755907903517,3.51966147,4811.8,4811.7,0.104]
[1755907903724,7.59816147,4811.8,4811.2,0.001]
[1755907904041,0.9695,4811.7,4811.2,0.001]
[1755907904232,0.295,4811.3,4811.2,0.001]
[1755907904432,3.904,4811.3,4811.2,0.001]
[1755907904738,12.58597762,4811.3,4811.2,0.001]
[1755907906645,4.199,4810.7,4809.8,0.02]
[1755907906888,0.5,4810.5,4809.9,6.309]
[1755907907193,0.4695,4810.4,4809.8,0.02]
[1755907907494,3.609,4810.3,4809.9,30.0]
[1755907907862,0.5,4810.5,4809.9,30.0]
[1755907908065,3.608,4810.4,4809.9,29.95]
[1755907908278,3.608,4810.4,4809.9,16.546]
[1755907908279,0.4309,4810.3,4809.9,16.546]
[1755907908496,0.4309,4810.2,4809.9,12.341]
[1755907908716,3.608,4810.4,4809.9,30.0]
[1755907908978,0.4309,4810.3,4809.9,30.0]
[1755907909296,3.608,4810.4,4810.3,30.0]
[1755907909594,3.608,4810.4,4809.9,30.0]
[1755907909595,4.3474,4810.4,4809.9,30.0]
[1755907910263,0.4309,4810.3,4809.9,30.0]
[1755907910457,0.4309,4810.3,4809.9,11.592]
[1755907910774,3.608,4810.4,4809.9,22.636]
[1755907911368,0.3085,4810.0,4809.9,7.271]
[1755907911587,3.608,4810.1,4809.9,6.397]
[1755907911758,3.608,4810.1,4810.0,4.498]
[1755907911964,3.9165,4810.1,4809.9,14.107]
[1755907912175,3.20466147,4810.0,4809.9,9.908]
[1755907912494,3.94406147,4810.0,4809.9,30.0]
[1755907912681,3.94406147,4810.0,4809.8,0.02]
[1755907912854,0.4309,4809.9,4809.8,0.02]
[1755907913050,0.7394,4809.9,4809.8,30.02]
[1755907913247,0.7394,4809.9,4809.8,25.004]
[1755907913452,0.7394,4809.9,4809.8,22.656]
[1755907913652,4.3474,4809.9,4809.8,22.656]
[1755907913887,4.3474,4809.9,4809.8,0.124]
[1755907915003,3.608,4809.9,4809.8,0.124]
[1755907915152,3.20466147,4810.0,4809.8,0.124]
[1755907916917,3.20466147,4810.0,4809.9,30.0]
[1755907918117,7.40466147,4810.0,4809.9,30.0]
[1755907919695,7.40466147,4810.0,4809.8,0.124]
[1755907919895,7.40466147,4810.0,4809.9,30.0]
[1755907920521,4.0389,4810.4,4809.9,30.0]
[1755907920898,4.0389,4810.4,4810.3,0.104]
[1755907921205,4.0389,4810.4,4810.3,30.104]
[1755907921402,0.5,4810.6,4810.3,30.104]
[1755907921700,3.607,4810.9,4810.4,30.0]
[1755907921900,3.607,4810.9,4810.7,0.104]
[1755907922087,3.607,4811.2,4810.7,30.104]
[1755907922442,4.2,4811.3,4810.7,30.764]
[1755907922735,4.2,4811.3,4811.2,0.104]
[1755907923036,4.2,4811.4,4811.2,30.104]
[1755907923184,4.2,4811.4,4811.3,30.0]
[1755907923917,4.7,4811.4,4811.3,30.0]
[1755907925038,4.5085,4811.4,4811.3,3.194]
[1755907925220,0.5,4810.5,4809.4,0.001]
[1755907925422,3.606,4810.4,4809.9,17.67]
[1755907925638,0.8085,4810.0,4809.9,17.67]
[1755907925845,4.4145,4810.0,4809.9,23.933]
[1755907926002,4.8454,4810.0,4809.9,23.333]
[1755907926207,4.3454,4810.0,4809.9,21.63]
[1755907926411,4.8454,4810.0,4809.9,21.63]
[1755907926944,4.8454,4810.0,4809.9,22.358]
[1755907927092,4.8454,4810.0,4809.9,24.007]
[1755907927290,4.8454,4810.0,4809.9,23.02]
[1755907927487,4.8454,4810.0,4808.1,1.597]
[1755907927791,0.91544,4809.9,4808.6,3.605]
[1755907927991,4.82894,4809.9,4808.7,10.0]
[1755907928204,4.3444,4809.9,4808.7,10.0]
[1755907928439,4.3444,4809.9,4808.6,3.605]
[1755907928440,4.3444,4809.9,4809.8,30.021]
[1755907928617,4.3444,4809.9,4809.8,8.409]
[1755907929230,4.3444,4809.9,4809.8,0.021]
[1755907931030,0.7394,4809.9,4809.8,0.021]
[1755907931203,4.3444,4809.9,4809.8,0.021]
[1755907931415,4.82884,4809.9,4809.8,0.021]
[1755907931608,4.3444,4809.9,4809.8,0.021]
[1755907932418,0.7394,4809.9,4809.8,0.021]
[1755907932802,0.5,4809.2,4808.3,0.66]
[1755907933002,4.179,4809.1,4808.9,30.0]
[1755907933305,4.679,4809.1,4808.9,30.0]
[1755907934633,4.179,4809.1,4808.9,30.0]
[1755907935004,4.179,4809.1,4808.9,30.66]
[1755907935207,4.179,4809.1,4809.0,30.78479434]
[1755907935541,4.179,4809.1,4809.0,30.764]
[1755907942042,4.179,4809.1,4809.0,34.367]
[1755907945503,3.92928495,4809.1,4809.0,34.367]
[1755907946043,3.92928495,4809.1,4809.0,4.366]
[1755907946226,0.002,4809.8,4809.1,0.66]
[1755907946427,0.002,4809.8,4809.7,0.764]
[1755907946633,0.002,4809.8,4809.7,4.366]
[1755907947040,0.002,4809.8,4809.7,34.366]
[1755907953856,0.002,4809.8,4809.7,34.86096118]
[1755907955235,0.002,4809.8,4809.7,36.10696118]
[1755907955535,0.022,4810.8,4809.8,1.906]
[1755907955740,0.022,4810.8,4810.0,0.66]
[1755907955945,0.022,4810.8,4810.2,0.66]
[1755907956140,0.022,4810.8,4809.8,1.49720274]
[1755907956141,0.022,4810.8,4810.7,0.764]
[1755907956462,0.022,4810.8,4810.7,35.96]
[1755907958062,0.022,4810.8,4810.7,35.8864]
[1755907958542,0.022,4810.8,4810.7,36.13015844]
[1755907958938,0.022,4810.8,4810.7,36.09975844]
[1755907959148,0.022,4810.8,4810.7,36.45496118]
[1755907959443,0.022,4810.8,4810.7,36.53814918]
[1755907960466,0.022,4810.8,4810.7,32.93914918]
[1755907960776,0.022,4810.8,4810.7,37.78314918]
[1755907961140,0.022,4810.8,4810.7,41.78314918]
[1755907961542,0.022,4810.8,4810.7,36.444188]
[1755907961771,0.022,4810.8,4810.7,40.042188]
[1755907962237,0.022,4810.8,4810.7,36.042188]
[1755907963478,0.783,4810.8,4810.7,36.042188]
[1755907964080,0.022,4810.8,4810.7,36.042188]
[1755907964240,0.022,4810.8,4810.7,5.959]
[1755907965104,0.022,4810.8,4810.7,35.959]
[1755907966759,0.022,4810.8,4810.7,35.957]
[1755907967157,0.002,4811.0,4810.8,0.66]
[1755907967357,0.002,4811.0,4810.9,44.256]
[1755907967556,0.002,4811.0,4810.9,34.256]
[1755907969083,0.002,4811.0,4810.9,30.66]
[1755907969287,0.002,4811.0,4810.9,34.255]
[1755907972388,0.7729,4811.0,4810.9,34.255]
[1755907973402,0.4743,4811.0,4810.9,34.255]
[1755907973763,0.7729,4811.0,4810.9,30.0]
[1755907973965,0.7729,4811.0,4810.8,30.0]
[1755907974166,0.3006,4811.0,4810.9,4.254]
[1755907974365,0.3006,4811.0,4810.9,33.594]
[1755907974567,4.72988495,4811.0,4810.9,29.525]
[1755907974766,4.72988495,4811.0,4810.9,3.594]
[1755907974767,5.20218495,4811.0,4810.9,3.594]
[1755907975065,5.20218495,4811.0,4810.9,34.254]
[1755907975258,5.20218495,4811.0,4810.9,30.0]
[1755907975458,5.20218495,4811.0,4810.8,30.0]
[1755907975658,4.72988495,4811.0,4810.8,30.0]
[1755907975858,0.4723,4810.9,4810.8,30.0]
[1755907976090,0.7709,4810.9,4810.8,30.0]
[1755907978514,0.7709,4810.9,4810.7,0.104]
[1755907978802,0.2986,4810.9,4810.8,30.0]
[1755907979008,0.2986,4810.9,4810.8,30.66]
[1755907979209,0.7986,4810.9,4810.8,30.66]
[1755907979505,1.2709,4810.9,4810.8,0.66]
[1755907979804,1.2709,4810.9,4810.8,30.66]
[1755907980378,4.70018495,4810.9,4810.8,30.66]
[1755907980572,5.20018495,4810.9,4810.8,34.253]
[1755907982507,5.20018495,4810.9,4810.8,33.254]
[1755907983613,5.20018495,4810.9,4810.8,33.592]
[1755907983802,5.20018495,4810.9,4810.8,32.042]
[1755907983979,5.20018495,4810.9,4810.8,16.327]
[1755907984182,5.20018495,4810.9,4810.8,15.126]
[1755907984582,4.70018495,4810.9,4810.8,33.592]
[1755907984880,5.20018495,4810.9,4810.8,33.592]
[1755907985411,5.20018495,4810.9,4810.8,21.033]
[1755907985713,5.20018495,4810.9,4810.8,33.592]
[1755907986073,5.20018495,4810.9,4810.8,30.0]
[1755907987517,5.20018495,4810.9,4810.8,30.02]
[1755907989586,5.20018495,4810.9,4810.8,0.02]
[1755907989813,5.20018495,4810.9,4810.8,30.02]
[1755907990811,5.20018495,4810.9,4810.8,33.611]
[1755907991010,5.20018495,4810.9,4810.8,33.612]
[1755907991217,5.20218495,4810.9,4810.8,33.612]
[1755907992108,5.20218495,4810.9,4810.8,30.021]
[1755907992497,5.20218495,4810.9,4810.8,30.001]
[1755907992697,3.93128495,4810.9,4810.8,31.052]